bitfinex/quotes_ETHUSD_20250508
["timestamp","ask_amount","ask_price","bid_price","bid_amount"]
[1746734186531,0.0122447,2125.7,2125.6,4.704554]
[1746734186745,0.0122447,2125.7,2125.0,3.0]
[1746734186960,4.70477534,2125.5,2123.6,0.1]
[1746734187108,3.0,2124.9,2122.9,0.81387489]
[1746734187307,4.70743303,2124.3,2122.9,0.81387489]
[1746734187542,4.70787627,2124.1,2122.6,4.71120324]
[1746734187749,4.71060692,2122.9,2122.5,0.353608]
[1746734188044,5.53520324,2122.6,2122.5,0.353608]
[1746734188344,0.05890675,2122.8,2121.7,4.71320167]
[1746734188508,0.824,2123.1,2121.9,4.71275743]
[1746734188713,0.05888028,2123.0,2122.0,4.71241936]
[1746734188913,4.71198572,2122.3,2121.5,0.34569746]
[1746734189242,4.71258114,2122.0,2121.5,4.71359734]
[1746734189440,4.71258114,2122.0,2121.1,4.71437834]
[1746734189441,4.71326528,2121.7,2121.1,4.71437834]
[1746734189618,4.77174209,2121.9,2121.2,4.71416698]
[1746734189817,4.71297954,2121.8,2121.2,4.71416698]
[1746734190149,0.05892003,2121.7,2120.5,0.8051]
[1746734190348,4.71291479,2121.9,2121.3,4.71407392]
[1746734190549,0.05892004,2121.9,2120.7,1.77601]
[1746734190752,0.05892004,2121.9,2120.6,16.955]
[1746734191049,0.05892004,2121.9,2121.4,4.71370668]
[1746734191251,0.05892004,2121.9,2121.2,4.71413616]
[1746734191252,0.05892004,2121.9,2121.2,3.0]
[1746734191439,0.824,2122.0,2121.6,4.71333205]
[1746734191847,0.0589087,2122.1,2121.6,4.71333205]
[1746734192053,0.7824,2122.5,2122.1,4.71219088]
[1746734192219,0.7824,2122.5,2122.0,4.71244844]
[1746734192419,0.05890871,2122.8,2122.0,4.71249928]
[1746734192650,0.05890871,2122.8,2121.8,4.71293168]
[1746734192815,4.71101621,2122.7,2122.1,4.71209208]
[1746734193021,0.05889292,2122.8,2122.0,4.71253534]
[1746734193247,0.05889292,2122.8,2122.3,4.71171538]
[1746734193421,0.7502,2123.5,2122.5,4.7114252]
[1746734193621,0.7502,2123.5,2122.2,7.71200836]
[1746734193833,0.7841,2124.5,2122.7,0.55]
[1746734194033,0.05885976,2124.4,2123.4,4.70929508]
[1746734194254,0.11503343,2123.9,2122.9,4.71036597]
[1746734194470,0.11503343,2123.9,2123.0,0.02360333]
[1746734194471,4.70980211,2123.3,2123.0,0.02360333]
[1746734194643,0.17390581,2123.9,2123.0,0.02360936]
[1746734194837,0.11503343,2123.9,2122.8,3.0]
[1746734195038,0.11503343,2123.9,2122.9,1.45440492]
[1746734195332,0.05885934,2124.2,2122.8,3.0]
[1746734195538,4.70834328,2123.9,2123.4,4.70941629]
[1746734195732,0.05886075,2123.8,2122.9,4.71053747]
[1746734195934,5.4913063,2124.5,2122.7,11.308]
[1746734195935,0.05886075,2124.0,2123.1,3.0]
[1746734196158,4.70743303,2124.3,2122.8,3.0]
[1746734196356,0.05887186,2124.2,2123.4,4.70927672]
[1746734196671,4.70836746,2123.9,2123.4,4.70927672]
[1746734196859,4.70895275,2123.7,2123.1,7.70996014]
[1746734197179,0.05886082,2123.8,2123.1,4.71002452]
[1746734197180,4.70901711,2123.6,2123.1,4.71002452]
[1746734197337,0.05886688,2123.7,2123.2,0.02359834]
[1746734197538,0.7988,2123.6,2121.6,0.0473]
[1746734197760,4.71217357,2122.2,2121.7,4.71316751]
[1746734198076,0.8488,2126.0,2124.1,4.70787627]
[1746734198368,0.05,2126.0,2125.9,4.70389011]
[1746734198543,0.05,2126.0,2125.6,0.04703935]
[1746734198754,0.05,2126.0,2125.3,7.70505374]
[1746734198946,0.05,2126.0,2124.7,10.22587122]
[1746734199353,4.70472633,2125.6,2124.8,3.0]
[1746734199548,0.05882016,2125.5,2124.7,10.22587122]
[1746734199764,0.7753,2125.7,2124.7,10.22587122]
[1746734199986,0.05881517,2125.6,2124.7,10.22587122]
[1746734200271,0.7753,2125.7,2125.0,7.70576763]
[1746734200433,0.10881468,2126.0,2124.8,3.0]
[1746734200634,0.10881468,2126.0,2124.9,4.70610381]
[1746734200864,4.70389011,2125.9,2125.1,4.70548244]
[1746734201073,4.76295399,2125.8,2125.2,4.70538877]
[1746734201382,1.0104848,2125.8,2124.9,4.70598707]
[1746734201686,1.0104848,2125.8,2124.1,5.53672696]
[1746734201687,4.76309721,2125.8,2125.2,4.70538547]
[1746734201834,0.05881436,2125.8,2124.3,3.0]
[1746734202032,0.05881436,2125.8,2125.2,4.70528687]
[1746734202274,0.10881436,2126.0,2124.9,9.17215789]
[1746734202482,0.05,2126.0,2125.6,4.70441029]
[1746734202651,0.05,2126.0,2125.6,4.70442243]
[1746734202851,0.02590035,2126.0,2125.0,3.0]
[1746734203038,4.76277213,2125.9,2125.1,4.70544175]
[1746734203237,4.76289245,2125.9,2125.1,4.75264172]
[1746734203579,5.45872568,2125.7,2123.9,4.7083196]
[1746734203780,4.70560745,2125.2,2124.5,4.70679554]
[1746734204070,0.05882739,2125.1,2124.5,4.70684297]
[1746734204377,4.70637287,2124.8,2124.2,4.70745511]
[1746734204591,0.05882825,2124.7,2124.2,4.70745511]
[1746734204875,0.05882825,2124.7,2124.1,4.70782119]
[1746734204876,0.83942825,2124.7,2124.1,4.70783045]
[1746734205084,5.54599106,2124.7,2124.0,4.70801739]
[1746734205239,0.83942825,2124.7,2122.9,4.7104354]
[1746734205436,4.70959248,2123.4,2122.5,0.8007]
[1746734205680,0.05882825,2123.3,2122.1,11.304]
[1746734205849,4.71046805,2123.0,2122.3,4.71186919]
[1746734206189,0.05882825,2122.9,2122.5,4.71131887]
[1746734206487,0.05882825,2123.6,2121.9,0.8007]
[1746734206779,4.71091389,2122.8,2122.3,4.71186492]
[1746734206989,4.76982862,2122.7,2122.1,4.71222436]
[1746734207154,4.76982862,2122.7,2122.0,3.0]
[1746734207155,4.7112086,2122.6,2122.0,3.0]
[1746734207335,0.05882825,2122.6,2122.0,3.0]
[1746734207541,0.7533,2122.7,2122.3,4.7117529]
[1746734207766,0.05882825,2122.6,2121.7,17.24793231]
[1746734207969,0.7533,2122.7,2122.4,4.7115242]
[1746734208471,4.70967637,2123.3,2122.0,4.71253534]
[1746734208472,5.50050206,2123.2,2122.7,4.71090339]
[1746734208673,0.7906,2123.2,2122.0,10.22587122]
[1746734208875,0.7906,2123.7,2122.6,3.0]
[1746734209184,0.7906,2123.7,2123.4,4.70931361]
[1746734209384,0.7906,2123.7,2122.7,3.0]
[1746734209385,4.70937212,2123.5,2122.7,3.0]
[1746734209675,4.70975868,2123.3,2122.6,3.0]
[1746734209860,0.05882825,2123.2,2122.5,4.75849737]
[1746734210034,0.7906,2123.7,2122.8,4.71075806]
[1746734210243,0.05882825,2123.6,2122.6,3.0]
[1746734210474,4.70954369,2123.4,2122.9,4.71048312]
[1746734210773,0.05882825,2123.3,2122.1,3.0]
[1746734210974,0.05882825,2123.5,2122.5,4.7114074]
[1746734211293,4.70998235,2123.2,2122.7,4.71095005]
[1746734211481,0.05882825,2123.4,2123.0,4.71013701]
[1746734211775,0.7906,2123.7,2123.2,4.70987189]
[1746734211975,0.05882825,2123.6,2122.8,4.7107203]
[1746734212176,0.05882825,2123.6,2123.3,4.7094757]
[1746734212380,0.7906,2123.7,2123.4,4.70929951]
[1746734212594,4.76672174,2124.1,2123.6,4.7088123]
[1746734213103,0.05882825,2124.1,2123.1,3.0]
[1746734213273,4.70957781,2123.4,2122.9,4.71041037]
[1746734213471,4.70809792,2124.0,2122.5,0.0473]
[1746734213472,4.71041717,2123.0,2122.5,0.0473]
[1746734213671,4.71041717,2123.0,2122.5,4.75853133]
[1746734213672,0.05882825,2122.9,2122.5,4.75853133]
[1746734213871,0.05882825,2122.9,2122.5,0.09440945]
[1746734214068,4.70945085,2123.4,2122.5,0.09440945]
[1746734214069,0.05882825,2123.0,2122.9,4.71053747]
[1746734214383,0.8078,2124.5,2124.1,4.70774441]
[1746734214590,0.8078,2124.5,2123.9,4.70816218]
[1746734214787,4.70754662,2124.3,2123.8,4.70852241]
[1746734214976,0.05882825,2124.2,2123.2,3.0]
[1746734215311,0.8078,2124.5,2123.3,0.04708588]
[1746734215464,0.8078,2124.5,2124.3,4.70728568]
[1746734215792,0.8293,2125.1,2123.9,3.0]
[1746734215972,0.05882825,2125.0,2124.3,4.70732189]
[1746734216160,0.8293,2125.1,2124.1,3.0]
[1746734216361,0.8293,2125.1,2124.2,10.89605956]
[1746734216700,0.02590035,2126.0,2125.9,4.70389011]
[1746734216885,0.02590035,2126.0,2125.2,4.70542237]
[1746734217198,0.02590035,2126.0,2125.2,4.70543948]
[1746734217513,0.02590035,2126.0,2125.3,7.7051642]
[1746734217675,0.02590035,2126.0,2125.8,4.70392704]
[1746734217866,0.02590035,2126.0,2125.0,27.784]
[1746734218064,0.02590035,2126.0,2125.6,4.70444225]
[1746734218493,0.02590035,2126.0,2125.9,4.70389011]
[1746734218997,4.72961555,2126.0,2125.1,8.48541402]
[1746734219293,4.72961555,2126.0,2125.6,4.70442276]
[1746734219294,0.02590035,2126.0,2125.6,4.70442276]
[1746734219687,0.02590035,2126.0,2125.6,4.75146284]
[1746734219890,4.70400787,2125.9,2125.4,4.70499339]
[1746734220122,4.70411938,2125.8,2125.4,3.0]
[1746734220421,5.50220135,2125.4,2124.1,5.54098241]
[1746734220709,5.50220135,2125.4,2124.3,4.70743303]
[1746734220710,0.05882825,2125.3,2124.3,4.70743303]
[1746734220880,0.7972,2125.4,2125.1,4.70562304]
[1746734221080,0.7972,2125.4,2125.0,4.70577742]
[1746734221286,5.50238006,2125.4,2124.9,4.75307634]
[1746734221482,4.7641539,2125.3,2124.8,4.70628581]
[1746734221683,4.76410667,2125.3,2123.9,4.70817273]
[1746734221915,4.70576221,2125.1,2124.6,4.70659549]
[1746734222109,4.70576221,2125.1,2123.9,4.70809984]
[1746734222110,4.70710297,2124.5,2123.7,10.636]
[1746734222284,0.7972,2125.4,2123.8,0.04707048]
[1746734222479,4.70543948,2125.2,2123.9,4.7083196]
[1746734222679,0.8144,2125.8,2124.3,4.70743303]
[1746734222879,0.8144,2125.8,2125.2,4.70525553]
[1746734223227,0.02590035,2126.0,2125.9,4.70389011]
[1746734223384,0.02590035,2126.0,2124.7,10.22587122]
[1746734223583,0.02590035,2126.0,2125.1,3.0]
[1746734223897,0.02590035,2126.0,2125.3,3.0]
[1746734224101,0.02590035,2126.0,2125.9,4.70389011]
[1746734224479,0.02590035,2126.0,2125.4,4.7049967]
[1746734224681,0.02590035,2126.0,2125.7,4.70420254]
[1746734225020,4.70449225,2125.7,2125.5,6.11]
[1746734225178,0.05880767,2125.6,2125.1,6.11]
[1746734225380,4.7048838,2125.5,2125.1,6.11]
[1746734225709,0.02590035,2126.0,2125.6,4.70453719]
[1746734225915,0.02590035,2126.0,2125.7,4.75123744]
[1746734226224,0.02590035,2126.0,2125.8,4.70397046]
[1746734226374,0.02590035,2126.0,2125.8,4.70394864]
[1746734226578,0.02590035,2126.0,2125.4,23.9549967]
[1746734226778,0.02590035,2126.0,2125.5,4.70477534]
[1746734227114,0.02590035,2126.0,2125.6,4.70453942]
[1746734227319,0.02590035,2126.0,2125.6,0.01171703]
[1746734227613,0.02590035,2126.0,2125.5,4.7047011]
[1746734227811,0.02590035,2126.0,2125.0,20.95583482]
[1746734227979,0.08469315,2126.0,2124.8,4.70620116]
[1746734228176,4.70529137,2125.3,2124.8,4.70620116]
[1746734228376,4.70588235,2125.0,2123.6,0.8328]
[1746734228607,4.70742652,2124.4,2123.6,0.8328]
[1746734228830,4.70688116,2124.6,2124.1,4.70773461]
[1746734229022,4.70735103,2124.4,2123.7,4.70861005]
[1746734229226,4.70709118,2124.5,2124.0,4.707969]
[1746734229405,4.76543527,2124.7,2123.9,4.70818662]
[1746734229406,4.70722544,2124.4,2123.9,4.70818662]
[1746734229605,4.70543948,2125.2,2124.3,4.70733441]
[1746734229921,0.0588302,2125.1,2123.7,2.04764825]
[1746734230091,0.0588302,2125.1,2123.8,4.70854129]
[1746734230292,4.70633419,2124.8,2124.3,4.70724102]
[1746734230614,4.76544182,2124.7,2123.9,4.7082974]
[1746734230774,0.0588363,2125.0,2124.1,0.55]
[1746734230982,3.11140554,2125.2,2124.6,4.70676833]
[1746734231337,3.11140554,2125.2,2125.1,7.70566091]
[1746734231999,3.11140554,2125.2,2124.7,10.98527122]
[1746734232321,3.11140554,2125.2,2125.1,4.70566091]
[1746734232521,3.11140554,2125.2,2125.1,7.70566091]
[1746734233320,3.11140554,2125.2,2125.1,3.0]
[1746734233515,0.7762,2125.1,2124.2,4.70753878]
[1746734233715,0.7762,2125.1,2124.3,6.11]
[1746734233716,0.0588289,2125.0,2124.3,6.11]
[1746734234014,4.70753021,2124.3,2123.8,16.25]
[1746734234312,0.05884307,2124.2,2123.5,7.98720597]
[1746734234515,0.7762,2124.1,2123.2,7.98720597]
[1746734234712,0.0588658,2124.0,2123.3,4.70952631]
[1746734234917,4.70888592,2123.7,2123.2,12.69703262]
[1746734235167,0.05886081,2123.8,2123.2,7.98720597]
[1746734235309,4.70918746,2123.6,2123.2,7.98720597]
[1746734235505,4.70977,2123.3,2122.8,12.69777405]
[1746734235709,4.71086866,2122.8,2122.3,4.71169254]
[1746734235911,4.71064154,2122.9,2122.4,4.71163373]
[1746734236139,0.7981,2123.2,2122.6,12.7082867]
[1746734236339,4.71081633,2122.8,2122.2,7.99720063]
[1746734236551,4.71081633,2122.8,2122.0,0.7595]
[1746734236716,0.05888889,2122.9,2122.0,0.54724001]
[1746734236911,0.0588914,2123.1,2121.7,15.07411263]
[1746734237217,4.71031559,2123.0,2122.3,4.71172798]
[1746734237416,0.7981,2123.2,2122.4,0.01191537]
[1746734237611,0.7981,2123.2,2122.9,4.71048384]
[1746734237839,4.71013104,2123.1,2122.5,4.71124774]
[1746734238044,0.05887789,2123.0,2122.0,4.71249068]
[1746734238207,0.85698034,2123.2,2122.2,4.71205744]
[1746734238421,0.85698034,2123.2,2122.9,4.71040854]
[1746734238422,0.7981,2123.2,2122.9,4.71040854]
[1746734238662,4.71042342,2123.0,2122.5,4.7113992]
[1746734238952,0.7981,2123.2,2122.6,0.01190768]
[1746734239108,4.71072599,2122.9,2122.3,4.71170604]
[1746734239313,4.71134435,2122.6,2122.0,4.71236462]
[1746734239551,4.71096364,2122.8,2122.1,0.01192055]
[1746734239716,4.71075937,2122.8,2122.2,4.71191898]
[1746734239925,4.71152914,2122.5,2122.0,4.71247464]
[1746734240112,4.71061259,2122.9,2122.1,0.01192662]
[1746734240113,0.05889453,2122.8,2122.1,0.01192662]
[1746734240314,4.76976973,2122.8,2122.3,4.71175698]
[1746734240546,0.0588908,2122.9,2122.6,4.71101906]
[1746734240720,4.76904855,2123.1,2122.2,4.71191644]
[1746734241023,0.0588966,2123.0,2122.2,4.7120346]
[1746734241242,4.71108821,2122.7,2122.2,4.7120346]
[1746734241430,0.0588966,2123.0,2122.0,4.71253534]
[1746734241632,4.71017889,2123.1,2122.1,0.04711272]
[1746734241830,0.7981,2123.2,2122.8,4.71058378]
[1746734242107,5.56384644,2123.2,2122.5,16.25]
[1746734242311,0.85396245,2123.2,2122.2,20.9620123]
[1746734242520,4.71086339,2122.8,2122.3,4.71183968]
[1746734242726,4.76649986,2122.9,2122.4,4.75873741]
[1746734242924,0.05586245,2122.9,2122.4,0.04711078]
[1746734243125,4.71131152,2122.6,2122.2,4.71206292]
[1746734243322,0.7981,2123.2,2122.1,3.0]
[1746734243546,4.71126598,2122.6,2122.2,16.25]
[1746734243865,4.76672821,2122.8,2122.3,4.71170975]
[1746734244042,0.05586245,2123.1,2122.4,4.71163131]
[1746734244240,4.71041518,2123.0,2122.5,4.71132082]
[1746734244439,4.76606173,2123.1,2122.5,4.71129814]
[1746734244650,4.76606173,2123.1,2122.6,4.71118188]
[1746734244852,0.05586245,2123.1,2122.4,0.0473]
[1746734245150,4.71045576,2123.0,2122.5,4.71141463]
[1746734245345,4.76650881,2122.9,2122.4,0.0473]
[1746734245547,4.71129217,2122.6,2122.4,0.0473]
[1746734245753,4.76715462,2122.6,2122.4,0.0473]
[1746734245919,0.05586245,2122.6,2122.4,0.0473]
[1746734246117,4.7114252,2122.5,2122.4,0.0473]
[1746734246519,3.32037009,2124.7,2122.4,0.0473]
[1746734246713,3.32037009,2124.7,2124.6,4.70676833]
[1746734246969,0.11503343,2125.3,2124.8,4.7063253]
[1746734247264,1.27081079,2125.1,2125.0,4.70588235]
[1746734247619,0.11503343,2125.3,2125.2,7.70543948]
[1746734247620,6.96012562,2125.3,2125.2,7.70543948]
[1746734247815,7.77851385,2125.5,2125.2,32.30453948]
[1746734248021,10.57877884,2126.1,2125.6,8.254554]
[1746734248258,10.57877884,2126.1,2125.9,8.94493258]
[1746734248464,0.16263211,2126.0,2125.9,12.20752858]
[1746734248631,0.05,2127.0,2126.4,7.70278404]
[1746734249040,0.05,2127.0,2126.9,5.25167849]
[1746734249243,12.44562216,2127.3,2127.2,18.66312002]
[1746734249466,12.44562216,2127.3,2127.2,19.21312002]
[1746734250155,12.44562216,2127.3,2127.2,18.66312002]
[1746734250360,12.44562216,2127.3,2127.2,30.42458302]
[1746734250525,12.44562216,2127.3,2127.2,17.88922002]
[1746734250721,12.44562216,2127.3,2127.2,7.70101541]
[1746734250918,4.0448272,2127.5,2127.2,7.70101541]
[1746734250919,4.0448272,2127.5,2127.3,4.70059448]
[1746734251159,4.0448272,2127.5,2127.1,4.70119006]
[1746734251367,4.0448272,2127.5,2127.3,4.70074805]
[1746734251662,4.0448272,2127.5,2127.4,8.25057346]
[1746734251823,0.0449272,2127.5,2127.4,9.02447346]
[1746734252164,0.98334886,2127.8,2127.7,5.2499107]
[1746734252322,5.96167052,2128.0,2127.9,7.69946896]
[1746734252518,5.96167052,2128.0,2127.9,18.12846896]
[1746734252724,0.04699027,2128.9,2128.5,4.69814423]
[1746734252964,0.04699027,2128.9,2128.5,7.78405315]
[1746734253329,0.04699027,2128.9,2128.5,8.67872913]
[1746734253529,0.04699027,2128.9,2128.5,8.12872913]
[1746734253751,0.04699027,2128.9,2128.5,10.53343913]
[1746734254124,0.04699027,2128.9,2128.5,11.08343913]
[1746734254362,0.04699027,2129.2,2128.6,8.24792351]
[1746734254568,0.04699027,2129.2,2128.7,4.69770282]
[1746734254863,10.57877884,2129.3,2129.0,4.69704086]
[1746734255045,2.44654719,2129.1,2129.0,7.7829296]
[1746734255249,2.39955692,2129.1,2129.0,8.3329296]
[1746734255765,2.39955692,2129.1,2129.0,7.7829296]
[1746734255961,2.44654719,2129.1,2129.0,6.88214086]
[1746734256264,2.44654719,2129.1,2129.0,5.24704086]
[1746734256467,2.39955692,2129.1,2129.0,8.24704086]
[1746734256936,2.44654719,2129.1,2128.8,14.51331031]
[1746734257136,2.44654719,2129.1,2129.0,9.65282798]
[1746734257337,2.44654719,2129.1,2129.0,14.34986884]
[1746734257747,2.44654719,2129.1,2129.0,14.89986884]
[1746734257953,2.39955692,2129.1,2129.0,11.27422113]
[1746734258150,2.39955692,2129.1,2129.0,11.3329296]
[1746734258349,10.57877884,2129.3,2129.2,4.69659966]
[1746734258677,10.62576911,2129.3,2129.2,14.52148033]
[1746734258858,6.29720103,2129.3,2129.2,17.52148033]
[1746734259438,6.29720103,2129.3,2129.2,20.93270633]
[1746734259838,6.29720103,2129.3,2129.2,9.82488067]
[1746734260078,11.57630995,2129.3,2129.0,9.65282798]
[1746734260239,4.69770282,2128.7,2128.6,10.58697263]
[1746734260434,0.7721,2129.2,2128.6,10.58697263]
[1746734260435,5.46873652,2129.2,2128.6,10.58697263]
[1746734260638,4.69770282,2128.7,2128.6,10.58697263]
[1746734260836,5.46875072,2129.2,2128.6,10.58697263]
[1746734261076,4.69770282,2128.7,2128.6,10.58697263]
[1746734261261,4.69770282,2128.7,2128.4,6.73785978]
[1746734261467,6.70363513,2129.2,2128.4,6.73785978]
[1746734261643,0.7721,2129.2,2128.5,0.04698102]
[1746734261976,6.25021076,2129.3,2128.6,4.69792351]
[1746734262152,4.69716918,2129.0,2128.4,11.4362055]
[1746734262355,4.69675456,2129.2,2128.8,3.97882667]
[1746734262540,6.25021076,2129.3,2128.8,3.97882667]
[1746734262739,6.25021076,2129.3,2128.8,4.02579919]
[1746734262944,6.25021076,2129.3,2129.2,4.69659966]
[1746734263178,6.25021076,2129.3,2129.2,7.69659966]
[1746734264070,6.25021076,2129.3,2128.7,5.04199998]
[1746734264071,6.25021076,2129.3,2128.9,4.69707047]
[1746734264266,6.25021076,2129.3,2129.2,4.69659966]
[1746734264468,6.25021076,2129.3,2128.7,3.0]
[1746734264676,6.25021076,2129.3,2129.2,4.89701744]
[1746734264976,6.25021076,2129.3,2129.2,9.5936171]
[1746734265187,6.25021076,2129.3,2129.2,4.89701744]
[1746734265391,6.25021076,2129.3,2129.2,9.5936171]
[1746734265598,6.25021076,2129.3,2129.2,7.69659966]
[1746734265792,2.64290541,2129.3,2129.2,10.43763934]
[1746734265956,11.5122005,2129.7,2129.6,4.6957175]
[1746734266161,11.5122005,2129.7,2129.6,8.2457175]
[1746734266868,11.5122005,2129.7,2129.6,7.6957175]
[1746734267559,11.5122005,2129.7,2129.6,16.63205364]
[1746734267560,4.53305517,2129.7,2129.6,16.63205364]
[1746734267783,4.53305517,2129.7,2129.6,24.29376991]
[1746734267990,2.69905517,2129.7,2129.6,24.29376991]
[1746734268297,2.69905517,2129.7,2129.6,49.99876991]
[1746734268498,2.46105517,2129.7,2129.6,49.99876991]
[1746734268700,2.46105517,2129.7,2129.6,45.46837433]
[1746734268942,2.46105517,2129.7,2129.6,18.13305364]
[1746734269275,2.46105517,2129.7,2129.4,6.73785978]
[1746734269487,4.6957175,2129.6,2129.0,10.58697263]
[1746734269698,4.63993901,2129.2,2129.0,10.58697263]
[1746734269895,4.69682025,2129.1,2129.0,10.58697263]
[1746734270210,4.69682025,2129.1,2129.0,8.77691112]
[1746734270365,4.69682025,2129.1,2129.0,5.74690203]
[1746734270562,4.69770282,2128.7,2128.6,11.52111727]
[1746734270797,0.7946,2129.2,2129.0,3.95316029]
[1746734270961,4.6962893,2129.4,2129.0,3.95316029]
[1746734271159,2.46105517,2129.7,2129.0,3.95316029]
[1746734271406,2.46105517,2129.7,2129.1,0.04696353]
[1746734271623,2.46105517,2129.7,2129.6,4.6957175]
[1746734271880,1.95214067,2129.7,2129.6,7.6957175]
[1746734272088,1.95214067,2129.7,2129.6,8.2457175]
[1746734272320,1.95214067,2129.7,2129.6,3.0]
[1746734272516,1.95214067,2129.7,2129.1,0.08588471]
[1746734272774,4.6960467,2129.5,2128.9,9.365]
[1746734272881,1.95214067,2129.7,2129.1,1.41477861]
[1746734273088,1.95214067,2129.7,2129.5,4.69573143]
[1746734273287,1.95214067,2129.7,2129.6,4.6957175]
[1746734273518,1.95214067,2129.7,2129.5,4.69573143]
[1746734273727,1.95214067,2129.7,2129.6,27.9621175]
[1746734273882,1.95214067,2129.7,2129.6,7.6957175]
[1746734274305,4.6957175,2129.6,2129.0,0.08588874]
[1746734274586,4.69682211,2129.1,2128.6,4.69781667]
[1746734274927,5.51155651,2129.5,2128.4,8.65136568]
[1746734274928,4.69615854,2129.4,2128.4,3.95316029]
[1746734275079,0.8156,2129.5,2128.7,3.95316029]
[1746734275280,4.69748214,2128.8,2128.7,0.60158833]
[1746734275707,4.69694578,2129.1,2128.7,0.60158833]
[1746734275907,12.91663482,2129.5,2128.7,0.60158833]
[1746734276116,4.69637909,2129.3,2128.7,0.60158833]
[1746734276321,4.69748214,2128.8,2128.7,0.60158833]
[1746734276507,4.69748214,2128.8,2128.3,4.69841715]
[1746734276689,4.69704086,2129.0,2128.2,0.09395197]
[1746734277016,4.69726149,2128.9,2128.2,0.09395197]
[1746734277207,4.69858572,2128.3,2128.2,0.04697702]
[1746734277516,4.69684364,2129.1,2128.3,0.41077324]
[1746734277680,4.69772131,2128.7,2128.4,0.04697654]
[1746734277880,4.69731822,2128.9,2128.5,0.04697702]
[1746734278088,4.69637909,2129.3,2128.7,4.69769844]
[1746734278287,10.03746136,2129.7,2128.8,0.04697325]
[1746734278288,4.69670124,2129.2,2128.8,0.04697325]
[1746734278586,4.69720214,2129.0,2128.5,5.24511171]
[1746734278787,0.7923,2129.3,2128.5,0.54697702]
[1746734278988,4.69730128,2128.9,2128.5,0.54697702]
[1746734279301,4.69705985,2129.0,2128.5,5.24511757]
[1746734279505,4.69705985,2129.0,2128.6,0.41061565]
[1746734279704,4.69729044,2128.9,2128.6,0.41061565]
[1746734280020,4.69727693,2128.9,2128.6,0.41061565]
[1746734280342,4.69759803,2128.8,2128.6,0.41061565]
[1746734280493,4.69757172,2128.8,2128.7,0.45759267]
[1746734280693,6.18705861,2128.8,2128.7,0.41061565]
[1746734281107,4.6988065,2128.2,2127.8,0.04697702]
[1746734281440,4.70188437,2126.9,2126.7,0.04697702]
[1746734281608,4.69994038,2127.7,2126.7,0.04697702]
[1746734281810,0.8281,2127.9,2127.1,0.04697702]
[1746734281996,0.8281,2127.9,2127.1,0.09397509]
[1746734282337,4.69981612,2127.8,2127.1,0.04697702]
[1746734282536,4.699692,2127.8,2127.3,4.70060736]
[1746734282710,0.8281,2127.9,2127.5,0.04697702]
[1746734282907,4.69836496,2128.4,2127.6,0.04699498]
[1746734283140,0.55,2128.3,2127.7,0.04697702]
[1746734283290,4.69955962,2127.9,2127.7,0.04697702]
[1746734283495,4.69881208,2128.2,2127.7,0.04697702]
[1746734283844,0.7776,2128.5,2127.7,0.04697702]
[1746734284072,0.01596955,2128.8,2127.8,4.69968982]
[1746734284333,4.69805491,2128.6,2127.8,3.0]
[1746734284495,0.01596955,2128.8,2127.9,0.04697652]
[1746734284695,4.6978198,2128.7,2128.1,4.69890516]
[1746734284913,4.69843583,2128.4,2128.2,0.04697702]
[1746734285131,4.69783485,2128.7,2128.2,0.04697702]
[1746734285367,0.01596955,2128.8,2128.3,0.04697702]
[1746734285542,12.44562216,2130.1,2128.8,3.0]
[1746734285702,4.6965569,2129.3,2128.7,4.69769281]
[1746734285907,4.74484665,2130.0,2128.7,0.04697702]
[1746734285908,4.69737347,2128.9,2128.7,0.04697702]
[1746734286101,4.69737347,2128.9,2128.2,4.6988065]
[1746734286327,4.69737347,2128.9,2128.1,3.04697702]
[1746734286328,4.69615854,2129.4,2128.4,4.69821438]
[1746734286648,4.69767662,2128.8,2128.4,0.04697702]
[1746734286845,4.69784072,2128.7,2128.4,0.04697702]
[1746734287142,4.69774943,2128.7,2128.2,0.04697676]
[1746734287354,0.93920967,2129.4,2128.2,0.04697676]
[1746734287355,6.64766491,2129.7,2128.6,0.04697702]
[1746734287524,6.64766491,2129.7,2128.2,0.04697676]
[1746734287525,1.95214067,2129.7,2128.8,0.04697702]
[1746734287714,4.69762344,2128.8,2128.2,3.04697702]
[1746734287915,4.69715038,2129.0,2128.5,4.69812808]
[1746734288148,1.95214067,2129.7,2128.6,0.04697467]
[1746734288351,4.6957175,2129.6,2128.6,4.74490053]
[1746734288522,1.95214067,2129.7,2128.8,4.69748214]
[1746734288843,0.05,2129.0,2128.9,16.62623851]
[1746734289248,0.05,2129.0,2128.9,11.92897702]
[1746734289449,0.05,2129.0,2128.9,13.62623851]
[1746734290151,0.05,2129.0,2128.9,15.67352551]
[1746734290446,0.05,2129.0,2128.9,19.22476651]
[1746734290651,0.05,2129.0,2128.9,8.92897702]
[1746734290850,0.05,2129.0,2128.9,13.62623851]
[1746734291025,5.69775813,2129.7,2129.2,4.69657802]
[1746734291350,1.00214067,2129.7,2129.4,0.04697702]
[1746734291556,1.00214067,2129.7,2129.4,7.74302867]
[1746734291770,1.00214067,2129.7,2129.4,7.74302352]
[1746734292069,1.00214067,2129.7,2129.4,4.74298214]
[1746734292254,1.00214067,2129.7,2129.6,7.74269452]
[1746734292453,1.00214067,2129.7,2129.6,0.04697702]
[1746734292657,4.6964094,2129.3,2128.9,0.04697702]
[1746734292856,4.69592321,2129.6,2129.1,4.69671719]
[1746734293057,4.69594275,2129.5,2129.1,4.69671719]
[1746734293370,5.69775185,2129.7,2129.2,4.69650429]
[1746734293582,5.69775185,2129.7,2129.2,5.77769582]
[1746734293583,4.69618365,2129.4,2129.2,5.77769582]
[1746734293883,4.69618365,2129.4,2129.3,0.04697702]
[1746734293884,4.69615854,2129.4,2129.3,0.04697702]
[1746734294437,1.00214067,2129.7,2129.4,4.69598318]
[1746734294672,1.00214067,2129.7,2129.5,0.04697702]
[1746734294868,1.00214067,2129.7,2129.5,4.74282265]
[1746734295047,1.00214067,2129.7,2129.5,0.04697702]
[1746734295252,1.00214067,2129.7,2129.1,0.04697702]
[1746734295448,4.69659966,2129.2,2129.1,0.04697702]
[1746734295856,4.69652384,2129.3,2129.1,0.04697702]
[1746734296238,4.69625879,2129.4,2129.1,0.04697702]
[1746734296435,4.69651734,2129.3,2129.1,7.73577379]
[1746734296660,4.69659966,2129.2,2129.1,7.73577379]
[1746734296986,0.55,2129.6,2129.1,7.73577379]
[1746734297187,4.69659966,2129.2,2129.1,7.68879677]
[1746734297473,4.69659966,2129.2,2129.1,7.73577379]
[1746734298172,1.00214067,2129.7,2129.1,7.73577379]
[1746734298564,4.69659966,2129.2,2129.1,6.01612302]
[1746734299899,4.69659966,2129.2,2129.1,6.51612302]
[1746734300202,4.69659966,2129.2,2129.1,5.57967845]
[1746734300698,5.24659966,2129.2,2129.1,5.03270143]